Workbook

Sheet Jahrestrend
A1: Überschrift
A2: Monat | B2: Ausgaben 1 | C2: Ausgaben 2 | D2: Ausgaben 3 | E2: Ausgaben 4 | F2: Ausgaben 5
A3: Jan | B3: =SUBTOTAL(109,Expense11[Summe]) -> 100.00 | C3: =SUBTOTAL(109,Expense21[Summe]) -> 200.00 | D3: =SUBTOTAL(109,Expense31[Summe]) -> 300.00 | E3: =SUBTOTAL(109,Expense41[Summe]) -> 400.00 | F3: =SUBTOTAL(109,Expense51[Summe]) -> 500.00
A4: Feb | B4: =SUBTOTAL(109,Expense12[Summe]) -> 200.00 | C4: =SUBTOTAL(109,Expense22[Summe]) -> 200.00 | D4: =SUBTOTAL(109,Expense32[Summe]) -> 300.00 | E4: =SUBTOTAL(109,Expense42[Summe]) -> 400.00 | F4: =SUBTOTAL(109,Expense52[Summe]) -> 500.00
A5: März | B5: =SUBTOTAL(109,Expense13[Summe]) -> 300.00 | C5: =SUBTOTAL(109,Expense23[Summe]) -> 200.00 | D5: =SUBTOTAL(109,Expense33[Summe]) -> 300.00 | E5: =SUBTOTAL(109,Expense43[Summe]) -> 400.00 | F5: =SUBTOTAL(109,Expense53[Summe]) -> 500.00
A6: Apr | B6: =SUBTOTAL(109,Expense14[Summe]) -> 400.00 | C6: =SUBTOTAL(109,Expense24[Summe]) -> 200.00 | D6: =SUBTOTAL(109,Expense34[Summe]) -> 300.00 | E6: =SUBTOTAL(109,Expense44[Summe]) -> 400.00 | F6: =SUBTOTAL(109,Expense54[Summe]) -> 500.00
A7: Mai | B7: =SUBTOTAL(109,Expense15[Summe]) -> 500.00 | C7: =SUBTOTAL(109,Expense25[Summe]) -> 200.00 | D7: =SUBTOTAL(109,Expense35[Summe]) -> 300.00 | E7: =SUBTOTAL(109,Expense45[Summe]) -> 400.00 | F7: =SUBTOTAL(109,Expense55[Summe]) -> 500.00
A8: Jun | B8: =SUBTOTAL(109,Expense16[Summe]) -> 600.00 | C8: =SUBTOTAL(109,Expense26[Summe]) -> 200.00 | D8: =SUBTOTAL(109,Expense36[Summe]) -> 300.00 | E8: =SUBTOTAL(109,Expense46[Summe]) -> 400.00 | F8: =SUBTOTAL(109,Expense56[Summe]) -> 500.00
A9: Jul | B9: =SUBTOTAL(109,Expense17[Summe]) -> 700.00 | C9: =SUBTOTAL(109,Expense27[Summe]) -> 200.00 | D9: =SUBTOTAL(109,Expense37[Summe]) -> 300.00 | E9: =SUBTOTAL(109,Expense47[Summe]) -> 400.00 | F9: =SUBTOTAL(109,Expense57[Summe]) -> 500.00
A10: Aug | B10: =SUBTOTAL(109,Expense18[Summe]) -> 800.00 | C10: =SUBTOTAL(109,Expense28[Summe]) -> 200.00 | D10: =SUBTOTAL(109,Expense38[Summe]) -> 300.00 | E10: =SUBTOTAL(109,Expense48[Summe]) -> 400.00 | F10: =SUBTOTAL(109,Expense58[Summe]) -> 500.00
A11: Sep | B11: =SUBTOTAL(109,Expense19[Summe]) -> 900.00 | C11: =SUBTOTAL(109,Expense29[Summe]) -> 200.00 | D11: =SUBTOTAL(109,Expense39[Summe]) -> 300.00 | E11: =SUBTOTAL(109,Expense49[Summe]) -> 400.00 | F11: =SUBTOTAL(109,Expense59[Summe]) -> 500.00
A12: Okt | B12: =SUBTOTAL(109,Expense110[Summe]) -> 1,000.00 | C12: =SUBTOTAL(109,Expense210[Summe]) -> 200.00 | D12: =SUBTOTAL(109,Expense310[Summe]) -> 300.00 | E12: =SUBTOTAL(109,Expense410[Summe]) -> 400.00 | F12: =SUBTOTAL(109,Expense510[Summe]) -> 500.00
A13: Nov | B13: =SUBTOTAL(109,Expense111[Summe]) -> 1,100.00 | C13: =SUBTOTAL(109,Expense211[Summe]) -> 200.00 | D13: =SUBTOTAL(109,Expense311[Summe]) -> 300.00 | E13: =SUBTOTAL(109,Expense411[Summe]) -> 400.00 | F13: =SUBTOTAL(109,Expense511[Summe]) -> 500.00
A14: Dez | B14: =SUBTOTAL(109,Expense112[Summe]) -> 1,200.00 | C14: =SUBTOTAL(109,Expense212[Summe]) -> 200.00 | D14: =SUBTOTAL(109,Expense312[Summe]) -> 300.00 | E14: =SUBTOTAL(109,Expense412[Summe]) -> 400.00 | F14: =SUBTOTAL(109,Expense512[Summe]) -> 500.00
A15: Total | B15: =SUM(B3:B14) -> 7,800.00 | C15: =SUM(C3:C14) -> 2,400.00 | D15: =SUM(D3:D14) -> 3,600.00 | E15: =SUM(E3:E14) -> 4,800.00 | F15: =SUM(F3:F14) -> 6,000.00
A16: Trends

Sheet Jan
A1: Ausgaben Januar
C3: TOTAL | D3: =SUM(D10,D17,D24,D30,D36) -> 1,500.00 €
A4: Ausgaben 1
A5: Datum | B5: Nummer | C5: Dienstleistung/Beschreibung | D5: Summe
A6: 2010-01-08 | C6: Beschreibung | D6: 100.00
A10: Zwischensumme | D10: =SUBTOTAL(109,Expense11[Summe]) -> 100.00
A11: x
A12: Ausgaben 2
A13: Datum | B13: Nummer | C13: Dienstleistung/Beschreibung | D13: Summe
A14: 2010-01-04 | C14: Beschreibung | D14: 200.00
A17: Zwischensumme | D17: =SUBTOTAL(109,Expense21[Summe]) -> 200.00
A18: x
A19: Ausgaben 3
A20: Datum | B20: Nummer | C20: Dienstleistung/Beschreibung | D20: Summe
A21: 2010-01-02 | C21: Beschreibung | D21: 300.00
A24: Zwischensumme | D24: =SUBTOTAL(109,Expense31[Summe]) -> 300.00
A25: x
A26: Ausgaben 4
A27: Datum | B27: Nummer | C27: Dienstleistung/Beschreibung | D27: Summe
A28: 2010-01-10 | C28: Beschreibung | D28: 400.00
A30: Zwischensumme | D30: =SUBTOTAL(109,Expense41[Summe]) -> 400.00
A31: s
A32: Ausgaben 5
A33: Datum | B33: Nummer | C33: Dienstleistung/Beschreibung | D33: Summe
A34: 2010-01-25 | C34: Beschreibung | D34: 500.00
A36: Zwischensumme | D36: =SUBTOTAL(109,Expense51[Summe]) -> 500.00

Sheet Feb
A1: Ausgaben Februar
C3: TOTAL | D3: =SUM(D10,D17,D24,D30,D36) -> 1,600.00 €
A4: Ausgaben 1
A5: Datum | B5: Nummer | C5: Dienstleistung/Beschreibung | D5: Summe
A6: 2010-02-08 | C6: Beschreibung | D6: 200.00
A10: Zwischensumme | D10: =SUBTOTAL(109,Expense12[Summe]) -> 200.00
A11: x
A12: Ausgaben 2
A13: Datum | B13: Nummer | C13: Dienstleistung/Beschreibung | D13: Summe
A14: 2010-02-04 | C14: Beschreibung | D14: 200.00
A17: Zwischensumme | D17: =SUBTOTAL(109,Expense22[Summe]) -> 200.00
A18: x
A19: Ausgaben 3
A20: Datum | B20: Nummer | C20: Dienstleistung/Beschreibung | D20: Summe
A21: 2010-02-02 | C21: Beschreibung | D21: 300.00
A24: Zwischensumme | D24: =SUBTOTAL(109,Expense32[Summe]) -> 300.00
A25: x
A26: Ausgaben 4
A27: Datum | B27: Nummer | C27: Dienstleistung/Beschreibung | D27: Summe
A28: 2010-02-10 | C28: Beschreibung | D28: 400.00
A30: Zwischensumme | D30: =SUBTOTAL(109,Expense42[Summe]) -> 400.00
A31: s
A32: Ausgaben 5
A33: Datum | B33: Nummer | C33: Dienstleistung/Beschreibung | D33: Summe
A34: 2010-02-25 | C34: Beschreibung | D34: 500.00
A36: Zwischensumme | D36: =SUBTOTAL(109,Expense52[Summe]) -> 500.00

Sheet Mär
A1: Ausgaben März
C3: TOTAL | D3: =SUM(D10,D17,D24,D30,D36) -> 1,700.00 €
A4: Ausgaben 1
A5: Datum | B5: Nummer | C5: Dienstleistung/Beschreibung | D5: Summe
A6: 2010-03-08 | C6: Beschreibung | D6: 300.00
A10: Zwischensumme | D10: =SUBTOTAL(109,Expense13[Summe]) -> 300.00
A11: x
A12: Ausgaben 2
A13: Datum | B13: Nummer | C13: Dienstleistung/Beschreibung | D13: Summe
A14: 2010-03-04 | C14: Beschreibung | D14: 200.00
A17: Zwischensumme | D17: =SUBTOTAL(109,Expense23[Summe]) -> 200.00
A18: x
A19: Ausgaben 3
A20: Datum | B20: Nummer | C20: Dienstleistung/Beschreibung | D20: Summe
A21: 2010-03-02 | C21: Beschreibung | D21: 300.00
A24: Zwischensumme | D24: =SUBTOTAL(109,Expense33[Summe]) -> 300.00
A25: x
A26: Ausgaben 4
A27: Datum | B27: Nummer | C27: Dienstleistung/Beschreibung | D27: Summe
A28: 2010-03-10 | C28: Beschreibung | D28: 400.00
A30: Zwischensumme | D30: =SUBTOTAL(109,Expense43[Summe]) -> 400.00
A31: s
A32: Ausgaben 5
A33: Datum | B33: Nummer | C33: Dienstleistung/Beschreibung | D33: Summe
A34: 2010-03-25 | C34: Beschreibung | D34: 500.00
A36: Zwischensumme | D36: =SUBTOTAL(109,Expense53[Summe]) -> 500.00

Sheet Apr
A1: Ausgaben April
C3: TOTAL | D3: =SUM(D10,D17,D24,D30,D36) -> 1,800.00 €
A4: Ausgaben 1
A5: Datum | B5: Nummer | C5: Dienstleistung/Beschreibung | D5: Summe
A6: 2010-04-08 | C6: Beschreibung | D6: 400.00
A10: Zwischensumme | D10: =SUBTOTAL(109,Expense14[Summe]) -> 400.00
A11: x
A12: Ausgaben 2
A13: Datum | B13: Nummer | C13: Dienstleistung/Beschreibung | D13: Summe
A14: 2010-04-04 | C14: Beschreibung | D14: 200.00
A17: Zwischensumme | D17: =SUBTOTAL(109,Expense24[Summe]) -> 200.00
A18: x
A19: Ausgaben 3
A20: Datum | B20: Nummer | C20: Dienstleistung/Beschreibung | D20: Summe
A21: 2010-04-02 | C21: Beschreibung | D21: 300.00
A24: Zwischensumme | D24: =SUBTOTAL(109,Expense34[Summe]) -> 300.00
A25: x
A26: Ausgaben 4
A27: Datum | B27: Nummer | C27: Dienstleistung/Beschreibung | D27: Summe
A28: 2010-04-10 | C28: Beschreibung | D28: 400.00
A30: Zwischensumme | D30: =SUBTOTAL(109,Expense44[Summe]) -> 400.00
A31: s
A32: Ausgaben 5
A33: Datum | B33: Nummer | C33: Dienstleistung/Beschreibung | D33: Summe
A34: 2010-04-25 | C34: Beschreibung | D34: 500.00
A36: Zwischensumme | D36: =SUBTOTAL(109,Expense54[Summe]) -> 500.00

Sheet Mai
A1: Ausgaben Mai
C3: TOTAL | D3: =SUM(D10,D17,D24,D30,D36) -> 1,900.00 €
A4: Ausgaben 1
A5: Datum | B5: Nummer | C5: Dienstleistung/Beschreibung | D5: Summe
A6: 2010-05-08 | C6: Beschreibung | D6: 500.00
A10: Zwischensumme | D10: =SUBTOTAL(109,Expense15[Summe]) -> 500.00
A11: x
A12: Ausgaben 2
A13: Datum | B13: Nummer | C13: Dienstleistung/Beschreibung | D13: Summe
A14: 2010-05-04 | C14: Beschreibung | D14: 200.00
A17: Subtotal | D17: =SUBTOTAL(109,Expense25[Summe]) -> 200.00
A18: x
A19: Ausgaben 3
A20: Datum | B20: Nummer | C20: Dienstleistung/Beschreibung | D20: Summe
A21: 2010-05-02 | C21: Beschreibung | D21: 300.00
A24: Subtotal | D24: =SUBTOTAL(109,Expense35[Summe]) -> 300.00
A25: x
A26: Ausgaben 4
A27: Datum | B27: Nummer | C27: Dienstleistung/Beschreibung | D27: Summe
A28: 2010-05-10 | C28: Beschreibung | D28: 400.00
A30: Subtotal | D30: =SUBTOTAL(109,Expense45[Summe]) -> 400.00
A31: s
A32: Ausgaben 5
A33: Datum | B33: Nummer | C33: Dienstleistung/Beschreibung | D33: Summe
A34: 2010-05-25 | C34: Beschreibung | D34: 500.00
A36: Subtotal | D36: =SUBTOTAL(109,Expense55[Summe]) -> 500.00

Sheet Jun
A1: Ausgaben Juni
C3: TOTAL | D3: =SUM(D10,D17,D24,D30,D36) -> 2,000.00 €
A4: Ausgaben 1
A5: Datum | B5: Nummer | C5: Dienstleistung/Beschreibung | D5: Summe
A6: 2010-06-08 | C6: Beschreibung | D6: 600.00
A10: Zwischensumme | D10: =SUBTOTAL(109,Expense16[Summe]) -> 600.00
A11: x
A12: Ausgaben 2
A13: Datum | B13: Nummer | C13: Dienstleistung/Beschreibung | D13: Summe
A14: 2010-06-04 | C14: Beschreibung | D14: 200.00
A17: Zwischensumme | D17: =SUBTOTAL(109,Expense26[Summe]) -> 200.00
A18: x
A19: Ausgaben 3
A20: Datum | B20: Nummer | C20: Dienstleistung/Beschreibung | D20: Summe
A21: 2010-06-02 | C21: Beschreibung | D21: 300.00
A24: Zwischensumme | D24: =SUBTOTAL(109,Expense36[Summe]) -> 300.00
A25: x
A26: Ausgaben 4
A27: Datum | B27: Nummer | C27: Dienstleistung/Beschreibung | D27: Summe
A28: 2010-06-10 | C28: Beschreibung | D28: 400.00
A30: Zwischensumme | D30: =SUBTOTAL(109,Expense46[Summe]) -> 400.00
A31: s
A32: Ausgaben 5
A33: Datum | B33: Nummer | C33: Dienstleistung/Beschreibung | D33: Summe
A34: 2010-06-25 | C34: Beschreibung | D34: 500.00
A36: Zwischensumme | D36: =SUBTOTAL(109,Expense56[Summe]) -> 500.00

Sheet Jul
A1: Ausgaben Juli
C3: TOTAL | D3: =SUM(D10,D17,D24,D30,D36) -> 2,100.00 €
A4: Ausgaben 1
A5: Datum | B5: Nummer | C5: Dienstleistung/Beschreibung | D5: Summe
A6: 2010-07-08 | C6: Beschreibung | D6: 700.00
A10: Zwischensumme | D10: =SUBTOTAL(109,Expense17[Summe]) -> 700.00
A11: x
A12: Ausgaben 2
A13: Datum | B13: Nummer | C13: Dienstleistung/Beschreibung | D13: Summe
A14: 2010-07-04 | C14: Beschreibung | D14: 200.00
A17: Zwischensumme | D17: =SUBTOTAL(109,Expense27[Summe]) -> 200.00
A18: x
A19: Ausgaben 3
A20: Datum | B20: Nummer | C20: Dienstleistung/Beschreibung | D20: Summe
A21: 2010-07-02 | C21: Beschreibung | D21: 300.00
A24: Zwischensumme | D24: =SUBTOTAL(109,Expense37[Summe]) -> 300.00
A25: x
A26: Ausgaben 4
A27: Datum | B27: Nummer | C27: Dienstleistung/Beschreibung | D27: Summe
A28: 2010-07-10 | C28: Beschreibung | D28: 400.00
A30: Zwischensumme | D30: =SUBTOTAL(109,Expense47[Summe]) -> 400.00
A31: s
A32: Ausgaben 5
A33: Datum | B33: Nummer | C33: Dienstleistung/Beschreibung | D33: Summe
A34: 2010-07-25 | C34: Beschreibung | D34: 500.00
A36: Zwischensumme | D36: =SUBTOTAL(109,Expense57[Summe]) -> 500.00

Sheet Aug
A1: Ausgaben August
C3: TOTAL | D3: =SUM(D10,D17,D24,D30,D36) -> 2,200.00 €
A4: Ausgaben 1
A5: Datum | B5: Nummer | C5: Dienstleistung/Beschreibung | D5: Summe
A6: 2010-08-08 | C6: Beschreibung | D6: 800.00
A10: Zwischensumme | D10: =SUBTOTAL(109,Expense18[Summe]) -> 800.00
A11: x
A12: Ausgaben 2
A13: Datum | B13: Nummer | C13: Dienstleistung/Beschreibung | D13: Summe
A14: 2010-08-04 | C14: Beschreibung | D14: 200.00
A17: Zwischensumme | D17: =SUBTOTAL(109,Expense28[Summe]) -> 200.00
A18: x
A19: Ausgaben 3
A20: Datum | B20: Nummer | C20: Dienstleistung/Beschreibung | D20: Summe
A21: 2010-08-02 | C21: Beschreibung | D21: 300.00
A24: Zwischensumme | D24: =SUBTOTAL(109,Expense38[Summe]) -> 300.00
A25: x
A26: Ausgaben 4
A27: Datum | B27: Nummer | C27: Dienstleistung/Beschreibung | D27: Summe
A28: 2010-08-10 | C28: Beschreibung | D28: 400.00
A30: Zwischensumme | D30: =SUBTOTAL(109,Expense48[Summe]) -> 400.00
A31: s
A32: Ausgaben 5
A33: Datum | B33: Nummer | C33: Dienstleistung/Beschreibung | D33: Summe
A34: 2010-08-25 | C34: Beschreibung | D34: 500.00
A36: Zwischensumme | D36: =SUBTOTAL(109,Expense58[Summe]) -> 500.00

Sheet Sep
A1: Ausgaben September
C3: TOTAL | D3: =SUM(D10,D17,D24,D30,D36) -> 2,300.00 €
A4: Ausgaben 1
A5: Datum | B5: Nummer | C5: Dienstleistung/Beschreibung | D5: Summe
A6: 2010-09-08 | C6: Beschreibung | D6: 900.00
A10: Zwischensumme | D10: =SUBTOTAL(109,Expense19[Summe]) -> 900.00
A11: x
A12: Ausgaben 2
A13: Datum | B13: Nummer | C13: Dienstleistung/Beschreibung | D13: Summe
A14: 2010-09-04 | C14: Beschreibung | D14: 200.00
A17: Zwischensumme | D17: =SUBTOTAL(109,Expense29[Summe]) -> 200.00
A18: x
A19: Ausgaben 3
A20: Datum | B20: Nummer | C20: Dienstleistung/Beschreibung | D20: Summe
A21: 2010-09-02 | C21: Beschreibung | D21: 300.00
A24: Zwischensumme | D24: =SUBTOTAL(109,Expense39[Summe]) -> 300.00
A25: x
A26: Ausgaben 4
A27: Datum | B27: Nummer | C27: Dienstleistung/Beschreibung | D27: Summe
A28: 2010-09-10 | C28: Beschreibung | D28: 400.00
A30: Zwischensumme | D30: =SUBTOTAL(109,Expense49[Summe]) -> 400.00
A31: s
A32: Ausgaben 5
A33: Datum | B33: Nummer | C33: Dienstleistung/Beschreibung | D33: Summe
A34: 2010-09-25 | C34: Beschreibung | D34: 500.00
A36: Zwischensumme | D36: =SUBTOTAL(109,Expense59[Summe]) -> 500.00

Sheet Okt
A1: Ausgaben Oktober
C3: TOTAL | D3: =SUM(D10,D17,D24,D30,D36) -> 2,400.00 €
A4: Ausgaben 1
A5: Datum | B5: Nummer | C5: Dienstleistung/Beschreibung | D5: Summe
A6: 2010-10-08 | C6: Beschreibung | D6: 1,000.00
A10: Zwischensumme | D10: =SUBTOTAL(109,Expense110[Summe]) -> 1,000.00
A11: x
A12: Ausgaben 2
A13: Datum | B13: Nummer | C13: Dienstleistung/Beschreibung | D13: Summe
A14: 2010-10-04 | C14: Beschreibung | D14: 200.00
A17: Zwischensumme | D17: =SUBTOTAL(109,Expense210[Summe]) -> 200.00
A18: x
A19: Ausgaben 3
A20: Datum | B20: Nummer | C20: Dienstleistung/Beschreibung | D20: Summe
A21: 2010-10-02 | C21: Beschreibung | D21: 300.00
A24: Zwischensumme | D24: =SUBTOTAL(109,Expense310[Summe]) -> 300.00
A25: x
A26: Ausgaben 4
A27: Datum | B27: Nummer | C27: Dienstleistung/Beschreibung | D27: Summe
A28: 2010-10-10 | C28: Beschreibung | D28: 400.00
A30: Zwischensumme | D30: =SUBTOTAL(109,Expense410[Summe]) -> 400.00
A31: s
A32: Ausgaben 5
A33: Datum | B33: Nummer | C33: Dienstleistung/Beschreibung | D33: Summe
A34: 2010-10-25 | C34: Beschreibung | D34: 500.00
A36: Zwischensumme | D36: =SUBTOTAL(109,Expense510[Summe]) -> 500.00

Sheet Nov
A1: Ausgaben November
C3: TOTAL | D3: =SUM(D10,D17,D24,D30,D36) -> 2,500.00 €
A4: Ausgaben 1
A5: Datum | B5: Nummer | C5: Dienstleistung/Beschreibung | D5: Summe
A6: 2010-11-08 | C6: Beschreibung | D6: 1,100.00
A10: Zwischensumme | D10: =SUBTOTAL(109,Expense111[Summe]) -> 1,100.00
A11: x
A12: Ausgaben 2
A13: Datum | B13: Nummer | C13: Dienstleistung/Beschreibung | D13: Summe
A14: 2010-11-04 | C14: Beschreibung | D14: 200.00
A17: Zwischensumme | D17: =SUBTOTAL(109,Expense211[Summe]) -> 200.00
A18: x
A19: Ausgaben 3
A20: Datum | B20: Nummer | C20: Dienstleistung/Beschreibung | D20: Summe
A21: 2010-11-02 | C21: Beschreibung | D21: 300.00
A24: Zwischensumme | D24: =SUBTOTAL(109,Expense311[Summe]) -> 300.00
A25: x
A26: Ausgaben 4
A27: Datum | B27: Nummer | C27: Dienstleistung/Beschreibung | D27: Summe
A28: 2010-11-10 | C28: Beschreibung | D28: 400.00
A30: Zwischensumme | D30: =SUBTOTAL(109,Expense411[Summe]) -> 400.00
A31: s
A32: Ausgaben 5
A33: Datum | B33: Nummer | C33: Dienstleistung/Beschreibung | D33: Summe
A34: 2010-11-25 | C34: Beschreibung | D34: 500.00
A36: Zwischensumme | D36: =SUBTOTAL(109,Expense511[Summe]) -> 500.00

Sheet Dez
A1: Ausgaben Dezember
C3: TOTAL | D3: =SUM(D10,D17,D24,D30,D36) -> 2,600.00 €
A4: Ausgaben 1
A5: Datum | B5: Nummer | C5: Dienstleistung/Beschreibung | D5: Summe
A6: 2010-12-08 | C6: Beschreibung | D6: 1,200.00
A10: Zwischensumme | D10: =SUBTOTAL(109,Expense112[Summe]) -> 1,200.00
A11: x
A12: Ausgaben 2
A13: Datum | B13: Nummer | C13: Dienstleistung/Beschreibung | D13: Summe
A14: 2010-12-04 | C14: Beschreibung | D14: 200.00
A17: Zwischensumme | D17: =SUBTOTAL(109,Expense212[Summe]) -> 200.00
A18: x
A19: Ausgaben 3
A20: Datum | B20: Nummer | C20: Dienstleistung/Beschreibung | D20: Summe
A21: 2010-12-02 | C21: Beschreibung | D21: 300.00
A24: Zwischensumme | D24: =SUBTOTAL(109,Expense312[Summe]) -> 300.00
A25: x
A26: Ausgaben 4
A27: Datum | B27: Nummer | C27: Dienstleistung/Beschreibung | D27: Summe
A28: 2010-12-10 | C28: Beschreibung | D28: 400.00
A30: Zwischensumme | D30: =SUBTOTAL(109,Expense412[Summe]) -> 400.00
A31: s
A32: Ausgaben 5
A33: Datum | B33: Nummer | C33: Dienstleistung/Beschreibung | D33: Summe
A34: 2010-12-25 | C34: Beschreibung | D34: 500.00
A36: Zwischensumme | D36: =SUBTOTAL(109,Expense512[Summe]) -> 500.00
